bitfinex-derivatives/quotes_SOLF0:USTF0_20250212
["timestamp","ask_amount","ask_price","bid_price","bid_amount"]
[1739368645952,37.75286075,193.08,192.91,37.75286075]
[1739368646154,3.0836,193.06,192.91,37.75286075]
[1739368646645,8.2636,193.06,192.91,37.75286075]
[1739368646846,0.03968431,193.0,192.97,0.03311376]
[1739368647253,0.03968431,193.0,192.98,5.182]
[1739368647863,0.03968431,193.0,192.97,0.03311376]
[1739368648455,8.431e-05,193.0,192.98,5.1821]
[1739368650059,8.431e-05,193.0,192.97,0.03311376]
[1739368651853,37.75294506,193.0,192.84,2.5898]
[1739368652055,37.75286075,192.97,192.84,2.5898]
[1739368652361,37.75286075,192.94,192.79,37.75286075]
[1739368652862,5.1841,192.91,192.84,5.1857]
[1739368653073,0.03791772,192.88,192.85,0.03962168]
[1739368653464,5.1851,192.87,192.85,0.03962168]
[1739368653766,0.03791772,192.88,192.85,0.03962168]
[1739368653966,37.79077847,192.88,192.73,37.75286075]
[1739368654360,37.75286075,192.88,192.73,37.75286075]
[1739368655065,0.03848262,192.82,192.79,0.0396971]
[1739368658059,5.1867,192.81,192.79,0.0396971]
[1739368658364,0.03848262,192.82,192.79,0.0396971]
[1739368660968,5.22498262,192.82,192.79,0.0396971]
[1739368661359,0.03848262,192.82,192.68,23.26216137]
[1739368661559,2.9643,192.84,192.68,23.26216137]
[1739368661560,5.1872,192.8,192.68,23.26216137]
[1739368661767,2.9643,192.84,192.68,23.26216137]
[1739368662162,2.9643,192.84,192.71,23.26216137]
[1739368662564,0.03327896,192.79,192.76,0.03673152]
[1739368662766,0.03327896,192.79,192.77,5.1878]
[1739368663063,0.03327896,192.79,192.76,0.03673152]
[1739368663767,5.22057896,192.79,192.76,0.03673152]
[1739368664162,0.03327896,192.79,192.62,23.26216137]
[1739368664363,5.1883,192.75,192.69,5.1898]
[1739368664570,5.1883,192.75,192.59,112.31218306]
[1739368664571,23.26216137,192.77,192.59,25.85386137]
[1739368664772,5.1892,192.72,192.66,5.1906]
[1739368665471,0.03680034,192.71,192.67,0.03604739]
[1739368665869,0.03680034,192.71,192.67,5.22644739]
[1739368666168,0.03680034,192.71,192.59,23.26216137]
[1739368666368,23.26216137,192.74,192.58,7.08048306]
[1739368666563,23.26216137,192.74,192.64,5.1911]
[1739368667070,23.26216137,192.71,192.62,5.1916]
[1739368667272,23.26216137,192.68,192.53,25.85386137]
[1739368667572,23.29612256,192.68,192.5,23.26216137]
[1739368667774,23.26216137,192.68,192.5,23.26216137]
[1739368668267,23.26216137,192.62,192.46,3.2757]
[1739368668478,23.26216137,192.59,192.53,5.1941]
[1739368668770,0.03337057,192.58,192.54,0.0386134]
[1739368669271,3.2382,192.61,192.45,7.08048306]
[1739368669573,5.22754305,192.58,192.54,0.03936313]
[1739368669773,5.22754305,192.58,192.51,5.1946]
[1739368670573,0.03444305,192.58,192.51,5.1946]
[1739368670770,5.1932,192.57,192.51,5.1946]
[1739368670971,5.1932,192.57,192.4,0.7191]
[1739368670972,0.03444305,192.58,192.53,0.0332149]
[1739368671472,5.1931,192.58,192.41,25.85416137]
[1739368671673,0.03677732,192.57,192.54,0.034014]
[1739368671874,3.2382,192.61,192.53,5.1941]
[1739368672074,0.03904748,192.57,192.54,0.03605922]
[1739368674083,4.748e-05,192.57,192.54,0.03605922]
[1739368674281,4.748e-05,192.57,192.56,5.1934]
[1739368674478,4.748e-05,192.57,192.56,28.45556137]
[1739368675174,4.748e-05,192.57,192.56,5.1934]
[1739368677286,6.4667,192.7,192.56,23.26216137]
[1739368677578,6.4667,192.7,192.65,5.1909]
[1739368677779,11.6564,192.7,192.56,23.26216137]
[1739368677976,11.6564,192.7,192.63,5.1913]
[1739368678277,11.6564,192.7,192.56,23.26216137]
[1739368678580,0.03795893,192.68,192.65,0.03586008]
[1739368678777,0.03795893,192.68,192.56,23.26216137]
[1739368678980,0.03795893,192.68,192.65,0.03685398]
[1739368679278,23.26216137,192.77,192.69,5.1899]
[1739368679484,9.5552,192.77,192.65,23.30110513]
[1739368679782,14.743,192.77,192.71,5.1894]
[1739368680583,9.5552,192.77,192.71,5.1894]
[1739368680878,0.03884192,192.76,192.72,0.03940645]
[1739368681185,32.81736137,192.77,192.59,23.26216137]
[1739368681379,23.26216137,192.74,192.72,0.03613537]
[1739368681585,23.26216137,192.74,192.56,26.43186137]
[1739368681986,23.26216137,192.71,192.56,3.1697]
[1739368682178,23.26216137,192.68,192.53,23.26216137]
[1739368682383,5.1921,192.61,192.55,5.1937]
[1739368682781,0.03579938,192.6,192.56,0.03452785]
[1739368684186,0.03579938,192.6,192.44,23.26216137]
[1739368684386,23.26216137,192.59,192.44,23.26216137]
[1739368684584,5.1935,192.56,192.49,5.1951]
[1739368685381,0.03439563,192.54,192.51,0.03754759]
[1739368685691,0.03439563,192.54,192.47,5.1956]
[1739368685892,23.26216137,192.53,192.35,23.26216137]
[1739368686187,23.26216137,192.5,192.32,28.94836137]
[1739368686387,5.1962,192.46,192.32,28.94836137]
[1739368686987,0.03348356,192.41,192.37,0.03941386]
[1739368687187,0.03348356,192.41,192.37,5.23781386]
[1739368688487,0.03348356,192.41,192.38,5.1982]
[1739368688886,0.03348356,192.41,192.37,0.03941386]
[1739368690683,37.99800342,192.41,192.27,40.56691986]
[1739368690887,5.1981,192.39,192.27,40.56691986]
[1739368691086,3.259,192.4,192.27,40.56691986]
[1739368691582,37.96451986,192.38,192.24,37.96451986]
[1739368691883,37.96451986,192.32,192.29,0.0337954]
[1739368692088,0.03683737,192.33,192.29,0.0337954]
[1739368692386,37.96451986,192.5,192.32,37.96451986]
[1739368692586,6.4797,192.49,192.32,37.96451986]
[1739368692890,6.4797,192.49,192.38,5.1982]
[1739368693190,43.16131986,192.44,192.3,2.608]
[1739368693389,37.96451986,192.41,192.26,37.96451986]
[1739368693588,0.03610666,192.39,192.35,0.03498161]
[1739368694384,0.03610666,192.39,192.37,5.1984]
[1739368694583,0.03610666,192.39,192.35,0.03498161]
[1739368694789,6.66e-06,192.39,192.35,37.99950147]
[1739368694986,6.66e-06,192.39,192.38,5.1983]
[1739368695186,6.66e-06,192.39,192.38,43.16281986]
[1739368695586,37.96451986,192.56,192.43,5.1968]
[1739368695790,44.44421986,192.59,192.42,37.96451986]
[1739368696092,37.96451986,192.51,192.35,37.96451986]
[1739368696292,37.96451986,192.48,192.28,2.6027]
[1739368696494,9.0351,192.47,192.28,2.6027]
[1739368696787,0.03334599,192.41,192.39,5.198]
[1739368697187,9.0351,192.47,192.38,0.0352929]
[1739368697390,0.03666556,192.42,192.38,5.2332929]
[1739368697788,0.03666556,192.42,192.38,0.0352929]
[1739368698386,0.03666556,192.42,192.28,2.6027]
[1739368698592,0.03666556,192.42,192.33,5.1994]
[1739368698788,37.96451986,192.42,192.33,5.1994]
[1739368698988,3.1807,192.41,192.33,5.1994]
[1739368699186,3.1807,192.41,192.28,2.6027]
[1739368699387,5.1963,192.46,192.38,5.1982]
[1739368699593,3.1807,192.46,192.33,37.99763313]
[1739368699888,3.1807,192.46,192.33,37.96451986]
[1739368699889,0.03505661,192.44,192.33,37.96451986]
[1739368700093,0.03505661,192.44,192.4,5.1977]
[1739368701197,0.03505661,192.44,192.38,0.03836011]
[1739368701393,0.03505661,192.44,192.43,5.1969]
[1739368701592,5.661e-05,192.44,192.43,5.1969]
[1739368703691,37.96451986,192.6,192.53,5.1942]
[1739368703692,5.1925,192.6,192.53,5.1942]
[1739368704089,37.96451986,192.57,192.4,38.61421986]
[1739368704293,6.2691,192.61,192.4,38.61421986]
[1739368704294,37.96451986,192.6,192.43,37.96451986]
[1739368704594,6.2691,192.61,192.46,37.96451986]
[1739368704799,0.03999077,192.53,192.5,0.03501373]
[1739368705001,11.4614,192.61,192.51,5.1945]
[1739368705196,0.03588025,192.53,192.51,5.1945]
[1739368705396,6.2691,192.61,192.54,0.03596829]
[1739368705598,6.2691,192.61,192.51,5.1945]
[1739368705801,0.03506494,192.59,192.56,0.03339649]
[1739368706204,0.03506494,192.59,192.49,37.96451986]
[1739368706398,0.03506494,192.59,192.56,0.03836226]
[1739368706702,0.03487013,192.59,192.49,37.96451986]
[1739368707001,0.03487013,192.59,192.52,37.96451986]
[1739368707191,0.03487013,192.59,192.52,37.99879914]
[1739368707390,6.0913,192.66,192.52,37.99879914]
[1739368707591,0.0376606,192.57,192.53,5.7232]
[1739368707794,37.96451986,192.69,192.53,5.7232]
[1739368707992,5.1899,192.69,192.61,5.192]
[1739368708500,5.1899,192.69,192.55,37.96451986]
[1739368708794,37.96451986,192.72,192.55,37.96451986]
[1739368708995,0.03808673,192.64,192.63,5.1915]
[1739368709201,37.96451986,192.75,192.63,5.1915]
[1739368709398,0.03548321,192.65,192.63,5.1915]
[1739368709605,23.29691874,192.71,192.54,23.29691874]
[1739368709800,0.03380614,192.66,192.62,0.03634201]
[1739368710002,23.29691874,192.68,192.53,5.7232]
[1739368710308,0.03578618,192.66,192.62,0.03326272]
[1739368710691,5.1922,192.61,192.45,23.29691874]
[1739368710897,23.29691874,192.61,192.46,2.5982]
[1739368711093,23.29691874,192.55,192.42,2.988]
[1739368711397,23.29691874,192.55,192.43,5.1968]
[1739368711596,6.2408,192.54,192.43,5.1968]
[1739368711797,0.03778009,192.51,192.47,0.03486811]
[1739368713705,37.93822018,192.5,192.47,0.03486811]
[1739368714705,0.03778009,192.51,192.47,0.03486811]
[1739368716094,5.1954,192.49,192.47,0.03486811]
[1739368716299,37.97600027,192.51,192.47,0.03486811]
[1739368716497,5.1965,192.45,192.37,5.1984]
[1739368716700,37.93822018,192.51,192.34,37.93822018]
[1739368716902,37.93822018,192.48,192.33,2.988]
[1739368717507,5.1971,192.43,192.37,5.1985]
[1739368717707,0.03639638,192.42,192.39,0.03464512]
[1739368718911,5.1977,192.4,192.39,0.03464512]
[1739368721209,37.97461656,192.42,192.25,2.6372]
[1739368721411,5.199,192.36,192.25,2.6372]
[1739368721615,37.93822018,192.39,192.25,2.6372]
[1739368721809,2.979,192.38,192.27,5.201]
[1739368722011,5.1999,192.32,192.27,5.201]
[1739368722213,37.93822018,192.36,192.22,3.1994]
[1739368722412,0.03320687,192.31,192.28,0.03793143]
[1739368722612,5.23350687,192.31,192.28,0.03793143]
[1739368723215,5.2005,192.3,192.28,0.03793143]
[1739368724710,0.03320687,192.31,192.28,0.03793143]
[1739368725315,5.23350687,192.31,192.28,0.03793143]
[1739368725816,0.03320687,192.31,192.28,0.03793143]
[1739368728410,0.03320687,192.31,192.21,5.2027]
[1739368728610,44.31082018,192.32,192.15,37.93822018]
[1739368728812,37.93822018,192.29,192.12,37.93822018]
[1739368729016,37.93822018,192.26,192.09,37.93822018]
[1739368729619,0.03818945,192.19,192.16,0.03300521]
[1739368730017,37.93822018,192.26,192.16,0.03300521]
[1739368730221,0.03931962,192.19,192.16,0.03300521]
[1739368730423,37.93822018,192.26,192.16,0.03300521]
[1739368730921,0.03638041,192.23,192.16,0.03300521]
[1739368731221,0.03638041,192.23,192.17,5.2039]
[1739368731922,0.03638041,192.23,192.16,0.03300521]
[1739368732525,0.03638041,192.23,192.19,5.2032]
[1739368732724,0.03638041,192.23,192.16,0.03300521]
[1739368733124,5.23878041,192.23,192.18,5.2037]
[1739368733325,0.03638041,192.23,192.16,0.03300521]
[1739368733918,23.40592301,192.2,192.16,0.03300521]
[1739368734122,6.1155,192.19,192.16,0.03300521]
[1739368734723,5.204,192.17,192.16,0.03300521]
[1739368735617,0.03381987,192.18,192.16,0.03300521]
[1739368736122,0.03381987,192.18,192.17,5.204]
[1739368737823,0.03381987,192.18,192.16,0.03300521]
[1739368742028,5.23751987,192.18,192.16,0.03300521]
[1739368742230,0.03381987,192.18,192.16,0.03300521]
[1739368744226,0.03381987,192.18,192.06,3.0187]
[1739368744527,38.03336245,192.2,192.06,3.0187]
[1739368745330,0.03775818,192.15,192.14,5.2047]
[1739368745631,6.5636,192.25,192.1,38.03336245]
[1739368745830,0.03455259,192.16,192.1,38.03336245]
[1739368746032,0.03455259,192.16,192.15,5.2045]
[1739368747432,5.259e-05,192.16,192.15,5.2045]
[1739368748229,38.03336245,192.29,192.14,0.03789287]
[1739368748230,233.03336245,192.32,192.23,5.2021]
[1739368748535,3.0113,192.31,192.23,5.2021]
[1739368748835,3.0113,192.31,192.18,38.03336245]
[1739368749037,3.0113,192.31,192.21,5.2029]
[1739368749234,6.5795,192.3,192.21,5.2029]
[1739368749531,0.03934971,192.26,192.23,0.03453272]
[1739368749935,0.03934971,192.26,192.23,5.23673272]
[1739368750134,0.03934971,192.26,192.23,0.03453272]
[1739368750528,0.03934971,192.26,192.25,5.2018]
[1739368752036,9.2748,192.38,192.3,5.2002]
[1739368752037,5.1988,192.36,192.3,5.2002]
[1739368752433,5.1991,192.35,192.3,5.2002]
[1739368753028,5.1986,192.37,192.31,5.2]
[1739368753234,0.03903998,192.34,192.31,0.03706898]
[1739368753735,0.03903998,192.34,192.31,0.03387188]
[1739368753736,0.03961932,192.34,192.31,0.03387188]
[1739368754833,0.03961932,192.34,192.33,5.1996]
[1739368755026,3.273,192.45,192.31,0.03387188]
[1739368755232,38.03336245,192.43,192.31,0.03387188]
[1739368755532,38.03336245,192.4,192.31,5.2]
[1739368756133,38.03336245,192.4,192.34,0.03394297]
[1739368756134,0.03839859,192.37,192.34,0.03394297]
[1739368756335,0.03839859,192.37,192.24,38.03336245]
[1739368756629,38.03336245,192.37,192.21,38.03336245]
[1739368756831,0.03298534,192.32,192.29,0.03613067]
[1739368757229,0.03298534,192.32,192.18,38.03336245]
[1739368757437,5.2005,192.3,192.29,0.03441903]
[1739368757638,0.0341657,192.27,192.24,5.2018]
[1739368757939,5.2005,192.3,192.24,5.24045826]
[1739368758134,0.03999691,192.27,192.24,5.24045826]
[1739368758332,0.03999691,192.27,192.24,0.03865826]
[1739368758832,5.2018,192.25,192.24,0.03865826]
[1739368760637,5.24149691,192.27,192.24,0.03865826]
[1739368760830,0.03999691,192.27,192.24,0.03865826]
[1739368761544,0.03999691,192.27,192.13,23.38365419]
[1739368761742,23.38365419,192.29,192.13,23.38365419]
[1739368762635,23.38365419,192.29,192.12,2.9922]
[1739368762940,0.03495052,192.23,192.19,0.0392457]
[1739368764636,5.23745052,192.23,192.19,0.0392457]
[1739368767546,0.03495052,192.23,192.19,0.0392457]
[1739368767745,5.2027,192.22,192.19,0.0392457]
[1739368769845,0.03495052,192.23,192.19,5.2426457]
[1739368770546,0.03495052,192.23,192.19,0.0392457]
[1739368771145,5.2029,192.21,192.19,0.0392457]
[1739368771341,0.03495052,192.23,192.07,23.38365419]
[1739368771546,23.38365419,192.26,192.07,23.38365419]
[1739368771746,23.38365419,192.23,192.07,23.38365419]
[1739368772550,5.23753114,192.17,192.13,0.03934912]
[1739368773653,5.2046,192.15,192.13,0.03934912]
[1739368774446,5.2048,192.14,192.13,0.03934912]
[1739368774651,23.38365419,192.16,192.03,3.1621]
[1739368775749,0.03353157,192.11,192.03,3.1621]
[1739368775954,0.03353157,192.11,192.1,5.2059]
[1739368776150,0.03353157,192.11,192.03,3.1621]
[1739368777250,0.03353157,192.11,192.06,5.2069]
[1739368777553,23.38365419,192.14,191.98,29.27575419]
[1739368777747,0.03563183,192.1,191.98,29.27575419]
[1739368778054,5.206,192.1,192.05,5.2072]
[1739368778254,0.03516088,192.06,192.05,5.2072]
[1739368779955,6.088e-05,192.06,192.05,5.2072]
[1739368793964,5.2046,192.15,192.04,23.41881285]
[1739368794164,5.2046,192.15,192.11,5.2053]
[1739368794363,5.2046,192.15,192.04,23.38365419]
[1739368795268,0.03501491,192.11,192.1,5.2058]
[1739368795568,29.39745419,192.17,192.08,0.0382245]
[1739368795863,0.03310603,192.12,192.08,0.0382245]
[1739368796066,5.23850603,192.12,192.08,0.0382245]
[1739368797064,5.23850603,192.12,192.08,5.2444245]
[1739368798470,5.2057,192.11,192.08,0.0382245]
[1739368798665,0.03310603,192.12,191.98,29.27575419]
[1739368798867,3.0898,192.1,191.98,26.63435419]
[1739368799068,3.0898,192.1,191.95,23.38365419]
[1739368799569,5.2071,192.06,191.95,23.38365419]
[1739368799970,0.03415602,192.02,191.95,23.38365419]
[1739368800871,0.03415602,192.02,192.01,5.2081]
[1739368801071,0.03415602,192.02,191.95,23.38365419]
[1739368801276,0.03415602,192.02,191.89,23.38365419]
[1739368801472,0.03415602,192.02,191.97,5.2092]
[1739368801772,0.03790032,192.01,191.97,5.2092]
[1739368802368,23.38365419,191.99,191.86,28.23304071]
[1739368802668,5.21,191.95,191.86,28.23304071]
[1739368802863,3.26941047,191.94,191.86,28.23304071]
[1739368803672,26.35125419,191.93,191.86,28.23304071]
[1739368803868,8.9315,191.93,191.86,28.23304071]
[1739368804673,5.9639,191.93,191.86,28.23304071]
[1739368805065,5.9639,191.93,191.83,23.38365419]
[1739368805371,6.5186,192.0,191.89,23.38365419]
[1739368805572,4.912e-05,191.9,191.89,23.38365419]
[1739368805772,6.5186,192.0,191.89,23.38365419]
[1739368805972,6.5186,192.0,191.86,23.38365419]
[1739368806173,23.38365419,191.99,191.83,23.38365419]
[1739368806373,23.38365419,191.96,191.8,23.38365419]
[1739368806577,23.38365419,191.96,191.77,23.38365419]
[1739368806870,0.03583434,191.88,191.85,0.03608655]
[1739368807065,0.03583434,191.88,191.87,5.2121]
[1739368807266,0.03583434,191.88,191.85,0.03608655]
[1739368807267,23.38365419,191.96,191.85,0.03608655]
[1739368807466,0.03760038,191.89,191.85,0.03608655]
[1739368807676,0.03760038,191.89,191.86,5.2122]
[1739368807867,23.38365419,191.93,191.77,51.6166949]
[1739368808073,23.38365419,191.9,191.77,28.23304071]
[1739368808275,12.39768415,191.89,191.86,0.03346376]
[1739368808471,5.2122,191.87,191.77,28.23304071]
[1739368808674,28.59585419,191.87,191.86,0.03299814]
[1739368808876,23.38365419,191.87,191.77,28.23304071]
[1739368809176,5.2133,191.83,191.77,28.23304071]
[1739368809377,23.38365419,191.81,191.76,56.33953508]
[1739368809567,5.2142,191.8,191.76,29.32983508]
[1739368809768,23.38365419,191.81,191.76,14.63113508]
[1739368810069,28.59825419,191.78,191.74,84.05189616]
[1739368810478,23.38365419,191.78,191.74,84.05189616]
[1739368810880,23.38365419,191.75,191.74,84.05189616]
[1739368811470,28.59905419,191.75,191.73,101.26299586]
[1739368811677,28.59905419,191.75,191.73,42.54098531]
[1739368811870,23.38365419,191.75,191.53,23.38365419]
[1739368812075,23.38365419,191.67,191.5,23.38365419]
[1739368812275,28.60135419,191.67,191.57,5.2201]
[1739368812476,0.03432652,191.63,191.57,5.2201]
[1739368812877,0.03432652,191.63,191.58,5.2198]
[1739368813280,0.03432652,191.63,191.55,9.0003]
[1739368813577,0.03432652,191.63,191.56,5.2205]
[1739368813974,0.03432652,191.63,191.49,3.0278]
[1739368814282,23.38365419,191.58,191.48,35.77398476]
[1739368814577,23.38365419,191.55,191.43,3.0068]
[1739368814783,28.60455419,191.55,191.44,5.2237]
[1739368815081,0.03653677,191.51,191.43,3.0068]
[1739368815482,0.03653677,191.51,191.44,23.38365419]
[1739368815678,23.38365419,191.64,191.47,23.38365419]
[1739368815976,23.38365419,191.64,191.48,5.9707]
[1739368816178,23.38365419,191.61,191.48,5.9707]
[1739368816582,28.60375419,191.58,191.5,5.222]
[1739368816985,0.03541152,191.56,191.52,0.03493495]
[1739368817385,53.92106338,191.62,191.48,5.9707]
[1739368817588,0.03631079,191.56,191.52,0.03548715]
[1739368817889,34.12146338,191.62,191.53,23.38365419]
[1739368818184,82.02376607,191.64,191.6,23.38365419]
[1739368818578,132.35019109,191.65,191.63,23.38365419]
[1739368818776,4.97523049,191.65,191.63,28.60225419]
[1739368819080,0.03708518,191.66,191.64,23.38365419]
[1739368819282,133.20785548,191.79,191.64,23.38365419]
[1739368819485,133.20785548,191.79,191.67,23.38365419]
[1739368820286,5.2137,191.82,191.67,23.38365419]
[1739368820488,0.03846867,191.75,191.73,5.2158]
[1739368820779,0.03846867,191.75,191.71,0.03331246]
[1739368820985,26.35835419,191.8,191.71,5.2162]
[1739368821186,0.0373064,191.75,191.61,23.38365419]
[1739368821487,5.2155,191.75,191.67,5.2175]
[1739368821687,23.38365419,191.77,191.61,23.38365419]
[1739368821880,9.7603,191.79,191.61,23.38365419]
[1739368822077,23.38365419,191.77,191.61,23.38365419]
[1739368822282,23.38365419,191.74,191.58,23.38365419]
[1739368822489,0.04010503,191.71,191.67,0.03910522]
[1739368823178,5.25660503,191.71,191.62,5.2187]
[1739368823379,5.25660503,191.71,191.55,23.38365419]
[1739368823579,5.2165,191.71,191.55,23.38365419]
[1739368823989,23.38365419,191.71,191.55,23.38365419]
[1739368824183,23.38365419,191.71,191.61,5.219]
[1739368824383,0.03288478,191.65,191.61,0.03704296]
[1739368824787,23.38365419,191.71,191.55,23.38365419]
[1739368824988,0.03731351,191.65,191.61,0.03302738]
[1739368825583,0.03731351,191.65,191.61,23.41668157]
[1739368826491,0.03731351,191.65,191.64,5.2183]
[1739368827002,0.03731351,191.65,191.61,0.03302738]
[1739368827188,0.03731351,191.65,191.62,5.2186]
[1739368827884,0.03731351,191.65,191.61,0.03302738]
[1739368828094,0.03731351,191.65,191.51,3.2627]
[1739368828592,5.2186,191.63,191.56,5.2205]
[1739368828792,9.273,191.67,191.51,3.2627]
[1739368828993,5.2195,191.6,191.53,5.2213]
[1739368829390,0.03812908,191.58,191.5,23.38365419]
[1739368830293,0.03812908,191.58,191.47,23.38365419]
[1739368830587,23.38365419,191.62,191.47,23.38365419]
[1739368830897,0.0378546,191.54,191.5,23.38365419]
[1739368831089,5.46e-05,191.54,191.5,23.38365419]
[1739368831394,9.273,191.67,191.53,23.38365419]
[1739368831584,9.273,191.67,191.56,23.38365419]
[1739368831789,23.38365419,191.74,191.56,23.38365419]
[1739368831993,3.2662,191.73,191.56,23.38365419]
[1739368832291,5.25179823,191.67,191.63,0.03688579]
[1739368832491,5.25179823,191.67,191.62,5.2188]
[1739368832492,23.38365419,191.71,191.53,23.38365419]
[1739368832692,0.03909226,191.67,191.63,5.25566402]
[1739368832994,23.38365419,191.71,191.56,23.38365419]
[1739368833193,5.25461636,191.67,191.63,0.035173]
[1739368833391,3.1514,191.7,191.53,23.38365419]
[1739368833694,0.03335814,191.67,191.63,0.0370284]
[1739368833894,23.38365419,191.65,191.5,23.38365419]
[1739368834095,23.38365419,191.62,191.47,80.09670153]
[1739368834287,3.0882,191.61,191.53,5.2211]
[1739368834490,3.0882,191.61,191.47,23.38365419]
[1739368835093,0.03449938,191.56,191.47,23.38365419]
[1739368835594,0.03449938,191.56,191.55,5.2208]
[1739368836483,0.03449938,191.56,191.5,23.38365419]
[1739368836484,23.38365419,191.71,191.53,23.38365419]
[1739368836686,5.2177,191.67,191.56,23.38365419]
[1739368837498,23.38365419,191.68,191.55,3.2679]
[1739368837700,0.03729817,191.63,191.6,0.03383222]
[1739368838197,5.25609817,191.63,191.6,0.03383222]
[1739368839098,0.03729817,191.63,191.6,0.03383222]
[1739368839395,0.03729817,191.63,191.48,38.26499704]
[1739368839599,38.26499704,191.61,191.46,9.2147]
[1739368839795,38.26499704,191.61,191.46,3.226]
[1739368840094,38.26499704,191.58,191.46,3.226]
[1739368840398,38.26499704,191.61,191.49,5.2223]
[1739368840597,0.03716907,191.54,191.46,3.226]
[1739368841199,0.03716907,191.54,191.42,38.26499704]
[1739368841491,0.03716907,191.54,191.41,0.1142]
[1739368841492,38.26499704,191.55,191.4,49.03431232]
[1739368841697,0.03288205,191.5,191.4,49.03431232]
[1739368842097,5.2228,191.48,191.42,5.2243]
[1739368842692,38.26499704,191.49,191.4,39.91281232]
[1739368843193,38.29792713,191.46,191.4,39.91281232]
[1739368843694,5.2247,191.41,191.34,5.2264]
[1739368844093,0.03782135,191.39,191.34,5.2264]
[1739368844294,0.03782135,191.39,191.3,21.48186455]
[1739368844700,5.2262,191.36,191.3,21.48186455]
[1739368845098,38.26499704,191.34,191.3,21.48186455]
[1739368845312,43.49229704,191.31,191.29,63.263522]
[1739368845703,0.03339998,191.35,191.29,63.263522]
[1739368846103,5.2276,191.3,191.29,63.263522]
[1739368846812,5.2276,191.3,191.22,56.71304734]
[1739368847209,38.26499704,191.25,191.22,56.71304734]
[1739368847508,38.26499704,191.25,191.22,17.14844734]
[1739368847708,5.2298,191.22,191.21,84.52521002]
[1739368847908,43.49479704,191.22,191.21,84.52521002]
[1739368848105,38.30225326,191.25,191.21,84.52521002]
[1739368848312,38.26499704,191.22,191.2,140.87535003]
[1739368848604,38.30225326,191.25,191.2,140.87535003]
[1739368849213,38.26499704,191.22,191.2,140.87535003]
[1739368850011,38.26499704,191.22,191.14,3.0837]
[1739368850216,38.30225326,191.25,191.14,3.0837]
[1739368850411,38.26499704,191.28,191.14,3.0837]
[1739368850721,0.03601525,191.21,191.14,3.0837]
[1739368850911,0.03601525,191.21,191.14,8.3155]
[1739368851101,0.03601525,191.21,191.14,3.0837]
[1739368851907,38.26499704,191.34,191.16,38.26499704]
[1739368852108,38.26499704,191.37,191.19,38.26499704]
[1739368852515,38.26499704,191.34,191.19,38.26499704]
[1739368852916,38.26499704,191.37,191.22,38.26499704]
[1739368853119,0.03392225,191.28,191.26,5.2287]
[1739368853320,38.26499704,191.37,191.25,0.03601352]
[1739368853516,38.26499704,191.37,191.23,9.5655]
[1739368853812,80.57576373,191.4,191.25,38.26499704]
[1739368854221,80.57576373,191.4,191.28,38.26499704]
[1739368854418,0.03318319,191.34,191.31,0.0357157]
[1739368854717,38.26499704,191.43,191.25,38.26499704]
[1739368854912,38.26499704,191.43,191.28,38.26499704]
[1739368855113,38.26499704,191.46,191.31,38.26499704]
[1739368855308,38.26499704,191.49,191.31,38.26499704]
[1739368855513,38.26499704,191.46,191.31,38.26499704]
[1739368856019,0.03761339,191.4,191.38,5.2253]
[1739368856317,38.26499704,191.46,191.28,38.26499704]
[1739368856717,38.26499704,191.46,191.31,38.26499704]
[1739368856910,38.26499704,191.5,191.31,38.26499704]
[1739368857115,38.26499704,191.44,191.25,38.26499704]
[1739368857316,38.26499704,191.41,191.39,0.03751759]
[1739368857615,38.26499704,191.41,191.23,6.4794]
[1739368857814,38.26499704,191.38,191.23,6.4794]
[1739368858114,38.26499704,191.38,191.3,0.03998169]
[1739368858314,0.0387163,191.32,191.3,0.03998169]
[1739368858519,38.26499704,191.35,191.3,0.03998169]
[1739368858715,0.03512181,191.33,191.3,0.03998169]
[1739368859115,38.26499704,191.32,191.3,0.03998169]
[1739368859416,43.49209704,191.32,191.3,8.169e-05]
[1739368860011,38.26499704,191.32,191.18,5.2307]
[1739368860215,5.229,191.25,191.18,5.2307]
[1739368860419,38.26499704,191.28,191.15,6.4208]
[1739368860619,38.26499704,191.31,191.15,6.4208]
[1739368860815,38.26499704,191.31,191.16,38.26499704]
[1739368861015,38.26499704,191.28,191.15,6.4208]
[1739368861217,0.03798553,191.25,191.22,0.03513721]
[1739368861517,38.30298257,191.25,191.22,0.03513721]
[1739368862419,5.2293,191.24,191.22,0.03513721]
[1739368862608,0.03798553,191.25,191.22,0.03513721]
[1739368863121,0.03798553,191.25,191.23,5.2295]
[1739368863719,0.03798553,191.25,191.22,0.03513721]
[1739368863919,0.03798553,191.25,191.24,5.2293]
[1739368864121,0.03798553,191.25,191.22,0.03513721]